fUST/lending_fUST_20250809
["ID","MTS","AMOUNT","RATE_DAILY","PERIOD"]
[378109602,1754734251324,-460.0,0.00023012,2]
[378109603,1754734251333,-460.0,0.00023012,2]
[378109604,1754734251343,-504.47,0.00023012,2]
[378109605,1754734251352,-460.0,0.00023012,2]
[378109606,1754734251362,-281.55971162,0.00023012,2]
[378109607,1754734251371,-996.57,0.00023012,2]
[378109608,1754734251381,-460.0,0.00023012,2]
[378109609,1754734251390,-1047.63,0.00023012,2]
[378109610,1754734251401,-373.38467414,0.00023012,2]
[378109611,1754734251413,-1066.63,0.00023012,2]
[378109612,1754734251423,-683.38,0.00023012,2]
[378109613,1754734251432,-151.0,0.00023012,7]
[378109614,1754734251442,-564.64,0.00023012,2]
[378109615,1754734251453,-151.0,0.00023012,7]
[378109616,1754734251462,-460.0,0.00023012,2]
[378109617,1754734251472,-1502.3,0.00023012,2]
[378109618,1754734251482,-979.62,0.00023012,2]
[378109619,1754734251491,-744.1,0.00023012,2]
[378109620,1754734251501,-460.0,0.00023012,2]
[378109621,1754734251510,-151.0,0.00023013,7]
[378109622,1754734251520,-151.0,0.00023013,7]
[378109623,1754734251529,-156.883488,0.00023013,7]
[378109624,1754734251538,-156.883488,0.00023013,7]
[378109625,1754734251548,-151.0,0.00023013,7]
[378109626,1754734251558,-151.0,0.00023013,7]
[378109627,1754734251567,-335.888351,0.00023013,7]
[378109628,1754734251576,-335.888351,0.00023013,7]
[378109629,1754734251585,-151.0,0.00023013,7]
[378109630,1754734251595,-151.0,0.00023013,7]
[378109631,1754734251604,-151.0,0.00023013,7]
[378109632,1754734251613,-460.0,0.00023013,2]
[378109633,1754734251622,-460.0,0.00023013,2]
[378109634,1754734251632,-473.56707233,0.00023013,2]
[378109635,1754734251641,-460.0,0.00023013,2]
[378109636,1754734251650,-434.549649,0.00023013,7]
[378109637,1754734251660,-434.549649,0.00023013,7]
[378109638,1754734251669,-460.0,0.00023013,2]
[378109639,1754734251678,-675.96,0.00023013,2]
[378109640,1754734251687,-460.0,0.00023013,2]
[378109641,1754734251696,-470.23,0.00023013,2]
[378109642,1754734251705,-460.0,0.00023013,2]
[378109643,1754734251714,-215.92355815,0.00023013,2]
[378109644,1754734251723,-500.47,0.00023013,2]
[378109645,1754734251733,-460.0,0.00023013,2]
[378109646,1754734251742,-151.0,0.00023013,7]
[378109647,1754734251752,-927.73,0.00023013,2]
[378109648,1754734251761,-460.0,0.00023013,2]
[378109649,1754734251769,-460.0,0.00023013,2]
[378109650,1754734251778,-151.0,0.00023013,7]
[378109651,1754734251787,-460.0,0.00023013,2]
[378109652,1754734251796,-151.0,0.00023013,7]
[378109653,1754734251805,-193.021058,0.00023013,7]
[378109654,1754734251815,-193.021058,0.00023013,7]
[378109655,1754734251824,-389.38239756,0.00023013,2]
[378109656,1754734251833,-878.18,0.00023013,2]
[378109657,1754734251843,-765.1,0.00023013,2]
[378109658,1754734251851,-677.064864,0.00023013,7]
[378109659,1754734251861,-677.064864,0.00023013,7]
[378109660,1754734251870,-460.0,0.00023013,2]
[378109661,1754734251880,-161.678658,0.00023013,7]
[378109662,1754734251889,-151.0,0.00023013,7]
[378109663,1754734251899,-161.678658,0.00023013,7]
[378109664,1754734251907,-1000.0,0.00023021,2]
[378109665,1754734251916,-1000.0,0.00023021,2]
[378109666,1754734251925,-719.71722395,0.00023021,2]
[378109667,1754734251934,-1000.0,0.00023021,2]
[378109668,1754734251943,-250.0,0.00023021,2]
[378109669,1754734251952,-151.0,0.00023021,7]
[378109670,1754734251961,-438.598391,0.00023021,7]
[378109671,1754734251970,-438.598391,0.00023021,7]
[378109672,1754734251981,-151.0,0.00023021,7]
[378109673,1754734251990,-151.341652,0.00023021,7]
[378109674,1754734251999,-446.395225,0.00023021,7]
[378109675,1754734252008,-446.395225,0.00023021,7]
[378109676,1754734252019,-151.0,0.00023021,7]
[378109677,1754734252028,-518.120487,0.00023021,7]
[378109678,1754734252037,-518.120487,0.00023021,7]
[378109679,1754734252046,-233.228555,0.00023021,7]
[378109680,1754734252055,-233.228555,0.00023021,7]
[378109681,1754734252065,-151.0,0.00023068,7]
[378109682,1754734252074,-151.0,0.00023068,7]
[378109683,1754734252083,-151.0,0.00023068,7]
[378109684,1754734252092,-151.0,0.00023068,7]
[378109685,1754734252102,-151.0,0.00023068,7]
[378109686,1754734252111,-151.0,0.00023068,7]
[378109687,1754734252121,-232.933287,0.00023068,7]
[378109688,1754734252131,-151.0,0.00023068,7]
[378109689,1754734252140,-151.0,0.00023068,7]
[378109690,1754734252149,-151.0,0.00023068,7]
[378109691,1754734252158,-152.300402,0.00023068,7]
[378109692,1754734252168,-151.0,0.00023068,7]
[378109693,1754734252178,-151.0,0.00023068,7]
[378109694,1754734252188,-1500.0,0.00023068,2]
[378109695,1754734252198,-391.14041971,0.00023068,2]
[378109696,1754734252208,-434.168058,0.00023068,2]
[378109697,1754734252218,-1500.0,0.00023068,2]
[378109698,1754734252228,-1500.0,0.00023068,2]
[378109699,1754734252237,-1500.0,0.00023068,2]
[378109700,1754734252247,-1500.0,0.00023068,2]
[378109701,1754734252256,-1500.0,0.00023068,2]
[378109702,1754734252265,-1500.0,0.00023068,2]
[378109703,1754734252275,-1500.0,0.00023068,2]
[378109704,1754734252284,-151.0,0.00023073,7]
[378109705,1754734252293,-168.0,0.0002308,2]
[378109706,1754734252303,-151.0,0.000231,8]
[378109707,1754734252312,-151.0,0.000231,7]
[378109708,1754734252323,-151.0,0.000231,5]
[378109709,1754734252332,-168.0,0.00023112,2]
[378109710,1754734252342,-160.0,0.00023165,2]
[378109711,1754734252351,-151.0,0.0002317,3]
[378109712,1754734252360,-500.0,0.0002317,3]
[378109713,1754734252370,-153.19746771,0.0002317,3]
[378109714,1754734252379,-274.93361934,0.0002317,3]
[378109715,1754734252389,-151.0,0.0002317,3]
[378109716,1754734252398,-151.0,0.0002317,3]
[378109717,1754734252411,-247.82943486,0.0002317,3]
[378109718,1754734252421,-200.0859835,0.0002317,3]
[378109719,1754734252430,-679.206314,0.00023189,7]
[378109720,1754734252440,-679.206314,0.00023189,7]
[378109721,1754734252451,-151.0,0.00023189,7]
[378109722,1754734252460,-167.637095,0.00023189,7]
[378109723,1754734252469,-274.956658,0.00023189,7]
[378109724,1754734252480,-151.0,0.000232,7]
[378109725,1754734252489,-175.55,0.00023212,2]
[378109726,1754734252498,-1212.07,0.00023212,2]
[378109727,1754734252508,-156.883488,0.00023268,7]
[378109728,1754734252517,-156.883488,0.00023268,7]
[378109729,1754734252526,-151.0,0.00023268,7]
[378109730,1754734252535,-151.0,0.00023268,7]
[378109731,1754734252544,-1500.0,0.00023268,2]
[378109732,1754734252554,-1500.0,0.00023268,2]
[378109733,1754734252563,-509.79912995,0.00023268,2]
[378109734,1754734252572,-1252.95218013,0.00023268,2]
[378109735,1754734252582,-1500.0,0.00023268,2]
[378109736,1754734252591,-1500.0,0.00023268,2]
[378109737,1754734252600,-1222.94961972,0.00023268,2]
[378109738,1754734252609,-489.56413626,0.00023268,2]
[378109739,1754734252618,-1500.0,0.00023268,2]
[378109740,1754734252628,-1500.0,0.00023268,2]
[378109741,1754734252637,-516.1618568,0.00023268,2]
[378109742,1754734252646,-1500.0,0.00023268,2]
[378109743,1754734252656,-501.83906,0.00023268,2]
[378109744,1754734252666,-1500.0,0.00023268,2]
[378109745,1754734252782,-512.91790159,0.00023268,2]
[378109746,1754734252792,-1013.97520851,0.00023268,2]
[378109747,1754734252801,-1500.0,0.00023268,2]
[378109748,1754734252811,-1500.0,0.00023268,2]
[378109749,1754734252820,-2001.8,0.00023277,3]
[378109750,1754734252830,-1000.9,0.00023277,3]
[378109751,1754734252839,-500.46,0.00023277,3]
[378109752,1754734252849,-151.0,0.00023277,7]
[378109753,1754734252859,-151.0,0.00023277,7]
[378109754,1754734252868,-398.428231,0.00023277,7]
[378109755,1754734252877,-398.428231,0.00023277,7]
[378109756,1754734252887,-479.810239,0.00023277,7]
[378109757,1754734252896,-479.810239,0.00023277,7]
[378109758,1754734252906,-447.117459,0.00023277,7]
[378109759,1754734252915,-447.117459,0.00023277,7]
[378109760,1754734252926,-460.0,0.00023286,2]
[378109761,1754734252935,-517.09,0.00023286,2]
[378109762,1754734252945,-460.0,0.00023286,2]
[378109763,1754734252954,-471.07,0.00023286,2]
[378109764,1754734252964,-460.0,0.00023286,2]
[378109765,1754734252973,-460.0,0.00023286,2]
[378109766,1754734252982,-460.0,0.00023286,2]
[378109767,1754734252992,-460.0,0.00023286,2]
[378109768,1754734253001,-460.0,0.00023286,2]
[378109769,1754734253010,-151.0,0.00023286,7]
[378109770,1754734253020,-151.0,0.00023286,7]
[378109771,1754734253029,-460.0,0.00023286,2]
[378109772,1754734253038,-680.69822192,0.00023286,2]
[378109773,1754734253585,4773.50161005,0.000199,2]
[378109774,1754734253615,1512.57602636,0.00021655,2]
[378109775,1754734253639,3260.92558366,0.00021655,2]
[378109776,1754734254019,-495.87070975,0.00021916,2]
[378109777,1754734271068,1145.5,0.00030137,120]
[378109825,1754734433318,4239.07441634,0.00021146,2]
[378109826,1754734433341,7500.0,0.00021146,2]
[378109827,1754734433365,7500.0,0.00021146,2]
[378109828,1754734433388,5660.92558366,0.00021146,2]
[378109829,1754734435811,1839.07441634,0.000199,2]
[378109830,1754734435836,3034.37874035,0.000199,2]
[378109831,1754734435893,4465.62125965,0.00021655,2]
[378109832,1754734435917,407.831897,0.00021655,2]
[378109835,1754734635430,5731.45668543,0.000199,2]
[378109836,1754734635515,1360.71141757,0.00021655,2]
[378109837,1754734635540,4370.74526761,0.00021655,2]
[378109839,1754734811528,1000.0,0.00020972,2]
[378109840,1754734820089,2129.25473239,0.000199,2]
[378109841,1754734820115,3681.40630881,0.000199,2]
[378109842,1754734820189,3818.59369119,0.00021655,2]
[378109843,1754734820214,1992.06734997,0.00021655,2]
[378109845,1754734921932,221.943208,0.00020966,2]
[378109847,1754735010889,5285.98944203,0.000199,2]
[378109848,1754735010915,2964.73108132,0.000199,2]
[378109849,1754735010996,4535.26891868,0.00021655,2]
[378109850,1754735011021,3715.45160466,0.00021655,2]
[378109852,1754735104036,557.867673,0.00013699,2]
[378109853,1754735104312,557.867673,0.00020187,2]
[378109854,1754735109579,185.2677192,0.00020912,2]
[378109855,1754735210279,2483.54533014,0.000199,2]
[378109856,1754735210307,5891.53938253,0.000199,2]
[378109857,1754735210399,1608.46061747,0.00021655,2]
[378109858,1754735210427,6766.62409499,0.00021655,2]
[378109882,1754735271038,733.37590501,0.00018,2]
[378109883,1754735271062,7500.0,0.00018,2]
[378109884,1754735271086,7500.0,0.00018,2]
[378109885,1754735271109,12500.0,0.00018,2]
[378109886,1754735271132,12500.0,0.00018,2]
[378109887,1754735271156,4643.09510943,0.00018,2]
[378109888,1754735275256,4546.52584633,0.00018,2]
[378109891,1754735318714,3310.37904424,0.0002,2]
[378109892,1754735318736,208.22222814,0.0002,2]
[378109899,1754735322927,151.0,0.00031673,120]
[378109900,1754735324906,150.999998,0.00021,2]
[378109901,1754735325753,552.094,0.00031673,30]
[378109913,1754735357401,313.3966268,0.00020944,2]
[378109916,1754735395858,7816.68872997,0.000199,2]
[378109917,1754735397770,4010.69241709,0.0002096,2]
[378109918,1754735397792,12500.0,0.0002096,2]
[378109919,1754735397814,8389.30758291,0.0002096,2]
[378109922,1754735411253,150.0,0.00019555,2]
[378109923,1754735418619,3960.69241709,0.00019663,2]
[378109924,1754735418643,1039.30758291,0.00019663,2]
[378109948,1754735431894,-307.44282912,0.00021555,2]
[378109960,1754735431948,-544.32532797,0.00021555,2]
[378109965,1754735431960,-228.44839214,0.00021555,2]
[378109967,1754735431970,-300.0,0.00021653,2]
[378109969,1754735431981,-300.0,0.00021654,2]
[378109971,1754735431990,-300.0,0.00021654,2]
[378109973,1754735432000,-300.0,0.00021654,2]
[378109975,1754735432009,-1200.0,0.00021654,2]
[378109977,1754735432019,-300.0,0.00021654,2]
[378109979,1754735432029,-7816.68872986,0.00021655,2]
[378109981,1754735432039,-1746.87480281,0.00021655,2]
[378109983,1754735432048,-1477.15540991,0.00021817,2]
[378109985,1754735432058,-41309.65707704,0.00021871,2]
[378109987,1754735432068,-1142.00121586,0.000219,2]
[378109989,1754735432077,-50000.0,0.00021917,2]
[378109991,1754735432087,-155.48493919,0.00021917,2]
[378109993,1754735432096,-460.0,0.00021917,2]
[378109995,1754735432105,-461.41991655,0.00021917,2]
[378109997,1754735432114,-460.0,0.00021917,2]
[378109999,1754735432123,-460.0,0.00021917,2]
[378110001,1754735432133,-606.85074739,0.00021917,2]
[378110003,1754735432142,-460.0,0.00021917,2]
[378110005,1754735432153,-460.0,0.00021917,2]
[378110007,1754735432162,-460.0,0.00021917,2]
[378110009,1754735432171,-460.0,0.00021917,2]
[378110011,1754735432181,-1200.0,0.00021967,2]
[378110014,1754735432194,-500.0,0.00021968,2]
[378110016,1754735432203,-500.0,0.00021968,2]
[378110018,1754735432212,-500.0,0.00021968,2]
[378110020,1754735432222,-850.8,0.00021969,2]
[378110022,1754735432231,-2551.99,0.00021969,2]
[378110024,1754735432240,-460.0,0.00021969,2]
[378110026,1754735432250,-617.29,0.00021969,2]
[378110028,1754735432259,-460.0,0.00021969,2]
[378110029,1754735432268,-460.0,0.00021969,2]
[378110031,1754735432278,-460.0,0.00021969,2]
[378110033,1754735432288,-460.0,0.00021969,2]
[378110034,1754735432298,-460.0,0.00021969,2]
[378110036,1754735432308,-2426.46,0.00021969,2]
[378110037,1754735432317,-2212.86,0.00021969,2]
[378110038,1754735432327,-460.0,0.00021969,2]
[378110039,1754735432337,-460.0,0.00021969,2]
[378110040,1754735432347,-460.0,0.00021969,2]
[378110041,1754735432356,-1240.44,0.00021969,2]
[378110042,1754735432365,-468.76883729,0.00021969,2]
[378110043,1754735432375,-646.1,0.00021969,2]
[378110044,1754735432385,-460.0,0.00021969,2]
[378110045,1754735432395,-460.0,0.00021969,2]
[378110046,1754735432404,-540.58,0.00021969,2]
[378110047,1754735432414,-462.43,0.00021969,2]
[378110048,1754735432424,-460.0,0.00021969,2]
[378110049,1754735432433,-460.0,0.00021969,2]
[378110050,1754735432442,-960.32,0.00021969,2]
[378110051,1754735432452,-460.0,0.00021969,2]
[378110052,1754735432461,-485.50622539,0.00021969,2]
[378110053,1754735432471,-689.4,0.00021969,2]
[378110054,1754735432480,-460.0,0.0002197,2]
[378110055,1754735432490,-460.0,0.0002197,2]
[378110056,1754735432499,-460.0,0.0002197,2]
[378110057,1754735432508,-1348.57,0.0002197,2]
[378110058,1754735432517,-500.0,0.00021971,2]
[378110059,1754735432527,-460.0,0.00021971,2]
[378110060,1754735432536,-460.0,0.00021971,2]
[378110061,1754735432545,-460.0,0.00021971,2]
[378110062,1754735432555,-460.0,0.00021971,2]
[378110063,1754735432564,-460.0,0.00021971,2]
[378110064,1754735432573,-383.83442842,0.00021971,2]
[378110065,1754735432583,-460.0,0.00021971,2]
[378110066,1754735432593,-460.0,0.00021971,2]
[378110067,1754735432602,-467.41,0.00021971,2]
[378110068,1754735432612,-460.0,0.00021971,2]
[378110069,1754735432622,-460.0,0.00021971,2]
[378110070,1754735432631,-460.0,0.00021971,2]
[378110071,1754735432643,-460.0,0.00021971,2]
[378110072,1754735432654,-460.0,0.00021971,2]
[378110073,1754735432663,-460.0,0.00021971,2]
[378110074,1754735432672,-460.0,0.00021971,2]
[378110075,1754735432682,-460.0,0.00021971,2]
[378110076,1754735432693,-460.0,0.00021971,2]
[378110077,1754735432702,-460.0,0.00021971,2]
[378110078,1754735432712,-460.0,0.00021971,2]
[378110079,1754735432722,-460.0,0.00021971,2]
[378110080,1754735432731,-537.48006223,0.00021971,2]
[378110081,1754735432741,-460.0,0.00021971,2]
[378110082,1754735432751,-460.0,0.00021971,2]
[378110083,1754735432761,-460.0,0.00021971,2]
[378110084,1754735432771,-460.0,0.00021971,2]
[378110085,1754735432781,-460.0,0.00021971,2]
[378110086,1754735432791,-460.0,0.00021971,2]
[378110087,1754735432801,-460.0,0.00021971,2]
[378110088,1754735432811,-460.0,0.00021971,2]
[378110089,1754735432822,-460.0,0.00021971,2]
[378110090,1754735432832,-460.0,0.00021971,2]
[378110091,1754735432842,-465.81025238,0.00021971,2]
[378110092,1754735432855,-460.0,0.00021971,2]
[378110093,1754735432864,-2738.21,0.00021971,2]
[378110094,1754735432874,-592.97,0.00021971,2]
[378110095,1754735432883,-460.0,0.00021971,2]
[378110096,1754735432892,-460.0,0.00021971,2]
[378110097,1754735432903,-460.0,0.00021971,2]
[378110098,1754735432912,-460.0,0.00021971,2]
[378110099,1754735432922,-460.0,0.00021971,2]
[378110100,1754735432933,-460.0,0.00021971,2]
[378110101,1754735432943,-694.57,0.00021971,2]
[378110102,1754735432952,-460.0,0.00021971,2]
[378110103,1754735432961,-460.0,0.00021971,2]
[378110104,1754735432971,-848.68,0.00021971,2]
[378110105,1754735432980,-460.0,0.00021971,2]
[378110106,1754735432990,-460.0,0.00021971,2]
[378110107,1754735432998,-461.48898929,0.00021971,2]
[378110108,1754735433008,-460.0,0.00021971,2]
[378110109,1754735433017,-460.0,0.00021971,2]
[378110110,1754735433027,-504.94,0.00021971,2]
[378110111,1754735433038,-460.0,0.00021971,2]
[378110112,1754735433048,-460.0,0.00021971,2]
[378110113,1754735433058,-460.0,0.00021971,2]
[378110114,1754735433068,-460.0,0.00021971,2]
[378110115,1754735433079,-422.17958706,0.00021971,2]
[378110116,1754735433090,-460.0,0.00021971,2]
[378110117,1754735433099,-463.07612979,0.00021971,2]
[378110118,1754735433111,-525.29,0.00021971,2]
[378110119,1754735433121,-460.0,0.00021971,2]
[378110120,1754735433130,-460.0,0.00021971,2]
[378110121,1754735433140,-460.0,0.00021971,2]
[378110122,1754735433151,-697.74,0.00021971,2]
[378110123,1754735433161,-460.0,0.00021971,2]
[378110124,1754735433171,-460.0,0.00021971,2]
[378110125,1754735433181,-460.0,0.00021971,2]
[378110126,1754735433191,-460.0,0.00021971,2]
[378110127,1754735433201,-460.0,0.00021971,2]
[378110128,1754735433210,-460.0,0.00021971,2]
[378110129,1754735433220,-460.0,0.00021971,2]
[378110130,1754735433230,-460.0,0.00021971,2]
[378110131,1754735433240,-460.0,0.00021971,2]
[378110132,1754735433250,-460.0,0.00021971,2]
[378110133,1754735433260,-805.74,0.00021971,2]
[378110134,1754735433270,-460.0,0.00021971,2]
[378110135,1754735433280,-775.34,0.00021971,2]
[378110136,1754735433290,-468.15,0.00021971,2]
[378110137,1754735433299,-460.0,0.00021971,2]
[378110138,1754735433307,-460.0,0.00021971,2]
[378110139,1754735433316,-509.99994878,0.00021971,2]
[378110140,1754735433326,-460.0,0.00021971,2]
[378110141,1754735433336,-460.0,0.00021971,2]
[378110142,1754735433346,-609.76,0.00021971,2]
[378110143,1754735433355,-460.0,0.00021971,2]
[378110144,1754735433365,-460.0,0.00021971,2]
[378110145,1754735433374,-460.25,0.00021971,2]
[378110146,1754735433384,-462.3072875,0.00021971,2]
[378110147,1754735433393,-460.0,0.00021971,2]
[378110148,1754735433404,-460.0,0.00021971,2]
[378110149,1754735433413,-472.50330467,0.00021971,2]
[378110150,1754735433423,-388.49944196,0.00021972,2]
[378110151,1754735433433,-460.0,0.00021972,2]
[378110152,1754735433442,-528.4464115,0.00021972,2]
[378110153,1754735433452,-460.0,0.00021972,2]
[378110154,1754735433462,-460.0,0.00021972,2]
[378110155,1754735433471,-384.9865178,0.00021972,2]
[378110156,1754735433481,-460.0,0.00021972,2]
[378110157,1754735433490,-460.0,0.00021972,2]
[378110158,1754735433500,-460.0,0.00021972,2]
[378110159,1754735433509,-460.0,0.00021972,2]
[378110160,1754735433519,-439.09150514,0.00021972,2]
[378110161,1754735433529,-460.0,0.00021972,2]
[378110162,1754735433539,-460.0,0.00021972,2]
[378110163,1754735433549,-460.91880732,0.00021972,2]
[378110164,1754735433560,-480.63807424,0.00021972,2]
[378110165,1754735433570,-460.0,0.00021972,2]
[378110166,1754735433580,-460.0,0.00021972,2]
[378110167,1754735433589,-460.0,0.00021972,2]
[378110168,1754735433599,-299.57394611,0.00021972,2]
[378110169,1754735433608,-462.20509115,0.00021972,2]
[378110170,1754735433618,-460.0,0.00021972,2]
[378110171,1754735433628,-460.0,0.00021972,2]
[378110172,1754735433637,-460.0,0.00021972,2]
[378110173,1754735433647,-460.0,0.00021972,2]
[378110174,1754735433658,-460.0,0.00021972,2]
[378110175,1754735433668,-460.0,0.00021972,2]
[378110176,1754735433678,-460.0,0.00021972,2]
[378110177,1754735433688,-460.0,0.00021972,2]
[378110178,1754735433698,-460.0,0.00021972,2]
[378110179,1754735433707,-460.0,0.00021972,2]
[378110180,1754735433716,-460.0,0.00021972,2]
[378110181,1754735433726,-460.0,0.00021972,2]
[378110182,1754735433735,-460.0,0.00021972,2]
[378110183,1754735433745,-461.12949667,0.00021972,2]
[378110184,1754735433754,-465.99353476,0.00021972,2]
[378110185,1754735433764,-460.0,0.00021972,2]
[378110186,1754735433774,-460.0,0.00021972,2]
[378110187,1754735433784,-460.0,0.00021972,2]
[378110188,1754735433794,-460.0,0.00021972,2]
[378110189,1754735433804,-460.0,0.00021972,2]
[378110190,1754735433813,-460.0,0.00021972,2]
[378110191,1754735433822,-460.0,0.00021972,2]
[378110192,1754735433832,-460.0,0.00021972,2]
[378110193,1754735433841,-460.0,0.00021972,2]
[378110194,1754735433851,-462.51852488,0.00021972,2]
[378110195,1754735433864,-478.81629105,0.00021972,2]
[378110196,1754735433875,-500.0,0.00021972,2]
[378110197,1754735433884,-460.0,0.00021972,2]
[378110198,1754735433894,-482.16,0.00021972,2]
[378110199,1754735433906,-461.24918505,0.00021972,2]
[378110200,1754735433916,-464.88125998,0.00021972,2]
[378110201,1754735433927,-460.0,0.00021972,2]
[378110202,1754735433939,-460.0,0.00021972,2]
[378110203,1754735433950,-460.0,0.00021972,2]
[378110204,1754735433960,-486.22492855,0.00021972,2]
[378110205,1754735433970,-460.0,0.00021972,2]
[378110206,1754735433981,-460.0,0.00021972,2]
[378110207,1754735433991,-460.0,0.00021972,2]
[378110208,1754735434001,-460.0,0.00021972,2]
[378110209,1754735434010,-37.06193735,0.00021972,2]
[378110288,1754735439944,-538.75,0.00021961,3]
[378110289,1754735439953,-727.63,0.00021969,2]
[378110290,1754735439963,-596.95,0.00021969,2]
[378110291,1754735439974,-500.0,0.00021971,2]
[378110292,1754735439984,-257.34137039,0.00021971,2]
[378110293,1754735439994,-500.0,0.00021971,2]
[378110294,1754735440003,-500.0,0.00021971,2]
[378110295,1754735440013,-500.0,0.00021971,2]
[378110296,1754735440023,-500.0,0.00021971,2]
[378110297,1754735440032,-500.0,0.00021971,2]
[378110298,1754735440042,-460.0,0.00021971,2]
[378110299,1754735440051,-500.0,0.00021971,2]
[378110300,1754735440060,-500.0,0.00021971,2]
[378110301,1754735440070,-500.0,0.00021971,2]
[378110302,1754735440079,-500.0,0.00021971,2]
[378110303,1754735440089,-500.0,0.00021971,2]
[378110304,1754735440098,-500.0,0.00021971,2]
[378110305,1754735440108,-280.43940631,0.00021971,2]
[378110306,1754735440117,-460.0,0.00021971,2]
[378110307,1754735440126,-422.93806265,0.00021972,2]
[378110308,1754735440136,-463.25648115,0.00021972,2]
[378110309,1754735440145,-460.0,0.00021972,2]
[378110310,1754735440155,-460.0,0.00021972,2]
[378110311,1754735440165,-263.16303542,0.00021972,2]
[378110312,1754735440174,-460.0,0.00021972,2]
[378110313,1754735440183,-460.0,0.00021972,2]
[378110314,1754735440193,-500.0,0.00021972,2]
[378110315,1754735440202,-527.04,0.00021972,2]
[378110316,1754735440211,-460.0,0.00021972,2]
[378110317,1754735440221,-916.41,0.00021972,2]
[378110318,1754735440230,-464.32194335,0.00021972,2]
[378110319,1754735440239,-593.17173863,0.00021972,2]
[378110320,1754735440248,-460.0,0.00021972,2]
[378110321,1754735440257,-461.03525445,0.00021972,2]
[378110322,1754735440266,-460.0,0.00021972,2]
[378110323,1754735440276,-469.25,0.00021972,2]
[378110324,1754735440285,-416.17079452,0.00021972,2]
[378110325,1754735440295,-264.91596639,0.00021972,2]
[378110326,1754735440304,-460.0,0.00021972,2]
[378110327,1754735440313,-469.55803136,0.00021972,2]
[378110328,1754735440323,-515.69829911,0.00021972,2]
[378110329,1754735440332,-460.0,0.00021972,2]
[378110330,1754735440491,-460.0,0.00021972,2]
[378110331,1754735440501,-460.0,0.00021972,2]
[378110332,1754735440512,-460.0,0.00021972,2]
[378110333,1754735440522,-460.0,0.00021972,2]
[378110334,1754735440531,-591.08364313,0.00021972,2]
[378110335,1754735440541,-466.25177067,0.00021972,2]
[378110336,1754735440550,-4196.29,0.00021972,2]
[378110337,1754735440559,-460.0,0.00021972,2]
[378110338,1754735440569,-460.0,0.00021972,2]
[378110339,1754735440579,-465.63278887,0.00021972,2]
[378110340,1754735440588,-460.0,0.00021972,2]
[378110341,1754735440598,-460.0,0.00021972,2]
[378110342,1754735440607,-2301.99,0.00021972,2]
[378110343,1754735440617,-460.0,0.00021972,2]
[378110344,1754735440627,-1295.01,0.00021972,2]
[378110345,1754735440636,-460.0,0.00021972,2]
[378110346,1754735440645,-464.49145008,0.00021972,2]
[378110347,1754735440655,-460.0,0.00021972,2]
[378110348,1754735440665,-460.0,0.00021972,2]
[378110349,1754735440674,-460.0,0.00021972,2]
[378110350,1754735440684,-465.16969975,0.00021972,2]
[378110351,1754735440693,-460.0,0.00021972,2]